[Event "Chinese League Div-A Rapid 2022"]
[Site "Fuling,Chongqing"]
[Date "2022.09.08"]
[Round "3.7"]
[White "Ding, Liren"]
[Black "Xu, Yinglun"]
[Result "1-0"]
[ECO "C02"]
[WhiteElo "2808"]
[BlackElo "2549"]
[Annotator "TA"]
[PlyCount "51"]
[EventDate "2022.09.07"]
[EventType "team-tourn"]
[EventCountry "CHN"]
[SourceTitle "playchess.com"]
[Source "ChessBase"]
[SourceQuality "1"]
[TimeControl "1500+10"]

{[%evp 13,51,23,18,0,53,15,27,21,24,26,29,0,43,30,63,45,85,3,85,0,0,0,0,0,0,0,-16,-22,0,-60,-61,-52,-58,-66,126,134,1004,994,1202,1197]} 1. e4 {[%emt 0:00:03]} e6 {[%emt 0:00:06]} 2. d4 {[%emt 0:00:03]} d5 {[%emt 0:00:02]} 3. e5 {[%emt 0:00:11]} c5 {[%emt 0:00:03]} 4. c3 {[%emt 0:00:01]} Qb6 {[%emt 0:00:11]} 5. Nf3 {[%emt 0:00:02]} Bd7 {[%emt 0:00:02]} 6. Be2 {[%emt 0:00:57]} Bb5 {[%emt 0:01:19] 6...cxd4 is more advanced technology.} 7. dxc5 {[%emt 0:00:25]} Bxc5 {[%emt 0:00:48]} 8. b4 {[%emt 0:00:20] C02: French: Advance Variation.} Be7 {[%emt 0:04:49]} ({Black should play} 8... Bxf2+ $11 9. Kf1 Bc6) 9. Bxb5+ {[%emt 0:01:06]} Qxb5 {[%emt 0:00:02]} 10. Na3 {[%emt 0:00:04] [#] White has an edge.} Qd7 $146 {[%emt 0:01:03]} ({Predecessor:} 10... Qa6 11. Nd4 Nd7 12. Nab5 Rc8 13. f4 Nh6 14. a4 O-O 15. Be3 b6 16. a5 Qb7 {1-0 (32) Khanin,S (2482)-Tsay,V (2310) Chess.com INT 2020}) 11. O-O {[%emt 0:00:07]} Nc6 {[%emt 0:00:42]} 12. Re1 {[%emt 0:04:51]} Bd8 {[%emt 0:05:14]} 13. Nb5 {[%emt 0:01:14][%cal Oc3c4] Black must now prevent c4!} Bc7 {[%emt 0:02:10]} (13... Nxe5 $2 14. Nxe5 Qxb5 15. Qh5 $18) 14. c4 {[%emt 0:02:09]} Nge7 {[%emt 0:01:10]} 15. Ba3 {[%emt 0:03:39] 0x0.0024fee330f2dp-1022s more active pieces. The black rooks are badly placed.} (15. Nxc7+ $16 Qxc7 16. b5) 15... a5 {[%emt 0:06:02]} (15... a6 $1 $11 {keeps the balance.} 16. Nxc7+ Qxc7) 16. Nxc7+ {[%emt 0:07:21]} (16. cxd5 $16 Nxd5 17. bxa5) 16... Qxc7 $11 {[%emt 0:00:02]} 17. b5 {[%emt 0:00:01]} Nb4 {[%emt 0:00:05]} 18. cxd5 {[%emt 0:02:23]} Nexd5 {[%emt 0:00:22]} 19. Rc1 $36 {[%emt 0:00:01][%mdl 2048] White has the initiative.} Qd7 {[%emt 0:00:08]} 20. Ng5 {[%emt 0:00:07][%cal Bf3g5,Bg5e4,Be4f6][%mdl 32]} O-O {[%emt 0:01:05]} 21. Rc4 {[%emt 0:02:14]} (21. Qh5 h6 22. Ne4 Qxb5 $17) (21. Rc3 $11) 21... h6 $15 {[%emt 0:01:26]} 22. Ne4 {[%emt 0:00:01]} Rfc8 {[%emt 0:00:19]} 23. Rd4 {[%emt 0:00:01]} Nc2 $2 {[%emt 0:00:59] [#] Pair of Knights!} ({Don't play} 23... Qxb5 24. Nd6 Qb6 25. Nxc8 Rxc8 26. Rd2 $14) (23... Nxa2 $2 24. Nf6+ $1 {[%mdl 512]} Nxf6 25. Rxd7 $18) (23... Qc7 $1 $15 {keeps the upper hand.} 24. Bxb4 axb4) 24. Nf6+ $1 $16 {[%emt 0:00:12]} gxf6 $2 {[%emt 0:00:03][%mdl 8192] [#]} (24... Nxf6 $16 25. Rxd7 Nxd7) 25. exf6 $1 $18 {[%emt 0:00:14] Threatening mate with Qg4+.} Nxf6 {[%emt 0:00:56]} (25... e5 26. Rxd5) 26. Rxd7 {[%emt 0:00:05] Weighted Error Value: White=0.22 (precise) /Black=0.45} 1-0

[Event "Chinese League Div-A Rapid 2022"]
[Site "Fuling,Chongqing"]
[Date "2022.09.08"]
[Round "3.8"]
[White "Chen, Yuan"]
[Black "Wen, Yang"]
[Result "1/2-1/2"]
[ECO "C54"]
[WhiteElo "2138"]
[BlackElo "2588"]
[Annotator "TA"]
[PlyCount "72"]
[EventDate "2022.09.07"]
[EventType "team-tourn"]
[EventCountry "CHN"]
[SourceTitle "playchess.com"]
[Source "ChessBase"]
[SourceQuality "1"]
[TimeControl "1500+10"]

{[%evp 22,72,-40,-37,-43,-41,-42,-44,-50,-68,-66,-108,-63,-68,-53,-72,-51,-56,-60,-77,-83,-72,-91,-86,-87,-86,-62,-62,-62,-62,-62,-62,-62,-62,-62,-63,-63,-63,-63,-75,-41,-41,0,0,0,0,0,0,0,0,0,0,0]} 1. e4 {[%emt 0:00:03]} e5 {[%emt 0:00:01]} 2. Nf3 {[%emt 0:00:01]} Nc6 {[%emt 0:00:03]} 3. Bc4 {[%emt 0:00:30]} Bc5 {[%emt 0:00:05]} 4. c3 {[%emt 0:00:31][%cal Bc2c3,Bc3d4,Bd4d5][%mdl 32]} Nf6 {[%emt 0:00:02]} 5. d4 {[%emt 0:00:01]} exd4 {[%emt 0:00:02]} 6. cxd4 {[%emt 0:00:02]} Bb4+ {[%emt 0:00:04]} 7. Nc3 {[%emt 0:00:22]} Nxe4 {[%emt 0:00:14]} 8. O-O {[%emt 0:00:03]} Bxc3 {[%emt 0:00:05]} 9. d5 {[%emt 0:00:04]} Ne5 {[%emt 0:00:10]} 10. bxc3 {[%emt 0:01:05]} Nxc4 {[%emt 0:00:04]} 11. Qd4 {[%emt 0:00:02]} f5 {[%emt 0:00:02]} 12. Qxc4 {[%emt 0:01:17][%cal Od5d6]} d6 {[%emt 0:00:01] C54: Giuoco Piano: 4 c3 Nf6, main lines with 5 d4 and 5 d3.} 13. Nd4 {[%emt 0:03:52]} O-O {[%emt 0:00:06] [#]} 14. a4 $146 {[%emt 0:01:13]} ({Predecessor:} 14. f3 Nc5 15. Ba3 b6 16. Bxc5 bxc5 17. Nc6 Qf6 18. Rfe1 Bd7 19. Re7 Rf7 20. Re6 Qg5 21. Rae1 h6 22. R6e2 Kh7 23. Qb3 Qh4 24. Nb8 Qd8 25. Nc6 Qh4 {½-½ (25) Tylecek,D (2271)-Steinke,R (2327) LSS email 2016}) 14... Bd7 {[%emt 0:00:56] Black is slightly better.} 15. f3 {[%emt 0:01:32]} Nc5 {[%emt 0:00:13]} 16. Be3 {[%emt 0:01:04]} b6 {[%emt 0:00:56]} 17. a5 {[%emt 0:00:28]} Qf6 {[%emt 0:00:24]} 18. Bf2 {[%emt 0:01:00]} Qf7 {[%emt 0:01:01]} 19. Rfe1 {[%emt 0:00:19]} Rfe8 {[%emt 0:00:30] Inhibits Ne6.} 20. axb6 {[%emt 0:01:26]} axb6 {[%emt 0:01:46]} 21. Rxa8 {[%emt 0:00:04]} Rxa8 {[%emt 0:00:02]} 22. Ne6 {[%emt 0:00:37]} b5 {[%emt 0:05:57]} 23. Qf1 {[%emt 0:01:25]} Nxe6 {[%emt 0:01:21]} 24. dxe6 {[%emt 0:00:03]} Bxe6 {[%emt 0:00:02]} 25. Qxb5 {[%emt 0:00:08]} h6 {[%emt 0:00:14]} 26. Qe2 {[%emt 0:05:23]} Bc4 {[%emt 0:01:24]} 27. Qd2 {[%emt 0:02:39]} Kh7 {[%emt 0:00:39]} 28. h4 {[%emt 0:00:19][%cal Bh2h4,Bh4h5][%mdl 32]} Ra2 {[%emt 0:02:15]} 29. Qf4 {[%emt 0:00:05]} Bd5 {[%emt 0:00:51]} 30. Bd4 {[%emt 0:00:58]} Rc2 {[%emt 0:03:13]} 31. h5 {[%emt 0:00:43]} Ra2 {[%emt 0:04:15]} 32. Qh4 $1 {[%emt 0:00:15] [#] Threatens to win with Re7. The position is equal.} Be6 {[%emt 0:00:03]} 33. Qg3 {[%emt 0:00:24][%cal Oe1e6] Rxe6! is the strong threat.} Bc4 {[%emt 0:00:23]} 34. Qg6+ {[%emt 0:00:32]} Qxg6 {[%emt 0:00:53]} 35. hxg6+ {[%emt 0:00:02]} Kxg6 {[%emt 0:00:02] [#] White must now prevent ...c5.} 36. Re7 {[%emt 0:00:02][%csl LRc7,LRg7]} Bf7 {[%emt 0:00:51] Weighted Error Value: White=0.05 (flawless) /Black=0.09 (flawless)} 1/2-1/2

[Event "Chinese League Div-A Rapid 2022"]
[Site "Fuling,Chongqing"]
[Date "2022.09.08"]
[Round "3.9"]
[White "Li, Xueyi"]
[Black "Bai, Xue"]
[Result "1/2-1/2"]
[ECO "E04"]
[WhiteElo "2280"]
[BlackElo "2123"]
[Annotator "NA RC"]
[PlyCount "98"]
[EventDate "2022.09.07"]
[EventType "team-tourn"]
[EventCountry "CHN"]
[SourceTitle "playchess.com"]
[Source "ChessBase"]
[SourceQuality "1"]
[TimeControl "1500+10"]

1. d4 {[%emt 0:00:03]} d5 {[%emt 0:00:03]} 2. Nf3 {[%emt 0:00:02]} e6 {[%emt 0:00:02]} 3. g3 {[%emt 0:00:02]} Nf6 {[%emt 0:00:02]} 4. Bg2 {[%emt 0:00:01]} c5 {[%emt 0:00:13]} 5. c4 {[%emt 0:00:29]} dxc4 {[%emt 0:00:30]} 6. O-O {[%emt 0:00:04]} Nc6 {[%emt 0:00:02]} 7. Ne5 {[%emt 0:00:09]} Bd7 {[%emt 0:00:03]} 8. Na3 {[%emt 0:00:02]} cxd4 {[%emt 0:00:09]} 9. Naxc4 {[%emt 0:00:02]} Be7 {[%emt 0:00:51]} 10. Qb3 {[%emt 0:00:02]} Qc7 {[%emt 0:00:11]} 11. Bf4 {[%emt 0:00:32]} Nh5 {[%emt 0:00:13]} 12. Nxc6 {[%emt 0:01:03]} Nxf4 {[%emt 0:00:03]} 13. Nxe7 {[%emt 0:00:04]} Nxg2 {[%emt 0:00:04]} 14. Rac1 {[%emt 0:01:12]} Qc5 {[%emt 0:00:23]} 15. Qxb7 {[%emt 0:02:36]} Kxe7 {[%emt 0:00:22]} 16. Nd2 {[%emt 0:01:06]} Qb6 {[%emt 0:03:14]} 17. Qf3 {[%emt 0:01:03]} Rac8 {[%emt 0:01:12]} 18. Ne4 {[%emt 0:05:43]} Rxc1 {[%emt 0:08:59]} 19. Qa3+ {[%emt 0:01:24]} Rc5 {[%emt 0:02:11]} 20. Nxc5 {[%emt 0:00:25]} Qd6 {[%emt 0:01:28]} 21. Kxg2 {[%emt 0:00:27]} Rc8 {[%emt 0:00:11]} 22. b4 {[%emt 0:00:25]} Rc7 {[%emt 0:00:49]} 23. f3 {[%emt 0:02:07]} Bb5 {[%emt 0:00:26]} 24. Qb2 {[%emt 0:00:47]} Qe5 {[%emt 0:00:49]} 25. Re1 {[%emt 0:01:08]} Qe3 {[%emt 0:00:54]} 26. a4 {[%emt 0:03:18]} Bc4 {[%emt 0:00:17]} 27. Qc2 {[%emt 0:01:22]} Bd5 {[%emt 0:01:03]} 28. Qc1 {[%emt 0:01:02]} Qxc1 {[%emt 0:02:58]} 29. Rxc1 {[%emt 0:00:01]} f5 {[%emt 0:00:29]} 30. a5 {[%emt 0:00:08]} e5 {[%emt 0:00:16]} 31. Rd1 {[%emt 0:00:08]} Bc4 {[%emt 0:00:33]} 32. Kf2 {[%emt 0:00:03]} Kd6 {[%emt 0:00:18]} 33. f4 {[%emt 0:00:38]} Bd5 {[%emt 0:00:52]} 34. fxe5+ {[%emt 0:00:59]} Kxe5 {[%emt 0:00:01]} 35. Nd3+ {[%emt 0:00:18]} Kd6 {[%emt 0:00:02]} 36. Nc5 {[%emt 0:00:27]} Ke5 {[%emt 0:00:01]} 37. Nd3+ {[%emt 0:00:17]} Kd6 {[%emt 0:00:01]} 38. Nf4 {[%emt 0:00:51]} g5 {[%emt 0:00:20]} 39. Nxd5 {[%emt 0:00:27]} Kxd5 {[%emt 0:00:01]} 40. b5 {[%emt 0:00:02]} Rb7 {[%emt 0:00:11]} 41. e3 {[%emt 0:00:21]} Rxb5 {[%emt 0:00:03]} 42. Rxd4+ {[%emt 0:00:02]} Ke5 {[%emt 0:00:09]} 43. Rd7 {[%emt 0:00:07]} Rxa5 {[%emt 0:00:03]} 44. Rxh7 {[%emt 0:00:02]} Ra2+ {[%emt 0:00:02]} 45. Ke1 {[%emt 0:00:03]} Ke4 {[%emt 0:00:06]} 46. Re7+ {[%emt 0:00:05]} Kf3 {[%emt 0:00:05]} 47. h4 {[%emt 0:00:01]} gxh4 {[%emt 0:00:37]} 48. gxh4 {[%emt 0:00:02]} Rh2 {[%emt 0:00:02]} 49. Rxa7 {[%emt 0:00:04]} Rxh4 {[%emt 0:00:02]} 1/2-1/2

[Event "Chinese League Div-A Rapid 2022"]
[Site "Fuling,Chongqing"]
[Date "2022.09.08"]
[Round "3.10"]
[White "Song, Yuxin"]
[Black "Zhu, Jiner"]
[Result "1/2-1/2"]
[ECO "B41"]
[WhiteElo "2317"]
[BlackElo "2464"]
[Annotator "TA"]
[PlyCount "61"]
[EventDate "2022.09.07"]
[EventType "team-tourn"]
[EventCountry "CHN"]
[SourceTitle "playchess.com"]
[Source "ChessBase"]
[SourceQuality "1"]
[TimeControl "1500+10"]

{[%evp 11,61,32,18,33,47,49,54,59,50,34,37,0,0,-2,8,0,12,13,12,0,0,0,0,0,0,0,0,0,0,0,0,0,0,0,0,0,0,0,0,0,0,-4,0,-6,0,0,0,0,0,0,0,0]} 1. e4 {[%emt 0:00:01]} c5 {[%emt 0:00:04]} 2. Nf3 {[%emt 0:00:01]} e6 {[%emt 0:00:02]} 3. d4 {[%emt 0:00:01]} cxd4 {[%emt 0:00:03]} 4. Nxd4 {[%emt 0:00:02]} a6 {[%emt 0:00:08]} 5. c4 {[%emt 0:00:04]} Nf6 {[%emt 0:00:06]} 6. Nc3 {[%emt 0:00:04]} Bb4 {[%emt 0:00:22]} 7. Qd3 {[%emt 0:00:02] is the new trend. B41: Sicilian: Kan Variation: 5 c4.} d6 {[%emt 0:00:06]} 8. Nc2 {[%emt 0:00:44]} Bxc3+ {[%emt 0:00:09]} 9. Qxc3 {[%emt 0:00:01] White is slightly better.} O-O {[%emt 0:00:08] 9...e5 is vanishing.} 10. f3 {[%emt 0:00:08]} d5 {[%emt 0:00:18] [#]} 11. exd5 $146 {[%emt 0:03:33]} (11. e5 $5 {[%cal Re5f6]} Nfd7 12. Be3 $14) ({Predecessor:} 11. e5 Nfd7 12. cxd5 Nb6 13. d6 Nd5 14. Qd2 Nc6 15. f4 f6 16. Bc4 Nb6 17. Bb3 fxe5 {½-½ (44) Cheparinov,I (2667)-Teclaf,P (2507) Tornelo INT 2021}) 11... exd5 {[%emt 0:00:04] The position is equal.} 12. Be3 {[%emt 0:00:03]} dxc4 {[%emt 0:09:48]} 13. Bxc4 {[%emt 0:00:05]} Nd5 {[%emt 0:00:21]} 14. Bxd5 {[%emt 0:00:53]} Qxd5 {[%emt 0:00:04]} 15. O-O {[%emt 0:00:03]} (15. Rd1 {is interesting.} Qc6 16. Bc5 Re8+ 17. Kf2) 15... Nc6 {[%emt 0:00:05]} 16. Nb4 {[%emt 0:01:04]} Nxb4 {[%emt 0:00:13]} 17. Qxb4 {[%emt 0:00:01]} a5 {[%emt 0:01:07]} 18. Qc5 {[%emt 0:00:35]} Be6 {[%emt 0:00:07][%cal Bc8e6,Be6d5,Bd5c6][%mdl 32]} 19. Qxd5 {[%emt 0:00:13]} Bxd5 {[%emt 0:00:03]} 20. Rfd1 {[%emt 0:00:01]} Bc6 {[%emt 0:00:17]} 21. Kf2 {[%emt 0:00:06]} a4 {[%emt 0:00:08]} 22. Bc5 {[%emt 0:00:46]} Rfe8 {[%emt 0:00:06]} 23. Re1 {[%emt 0:00:42]} h6 {[%emt 0:00:04]} 24. Rxe8+ {[%emt 0:00:03]} Rxe8 $11 {[%emt 0:00:02][%mdl 4096] Endgame KRB-KRB} 25. Re1 {[%emt 0:00:01]} Rd8 {[%emt 0:00:36]} 26. b3 {[%emt 0:01:17]} Rd5 {[%emt 0:00:29]} 27. Be7 {[%emt 0:00:02]} b5 {[%emt 0:01:09]} 28. bxa4 {[%emt 0:00:08]} bxa4 {[%emt 0:00:04]} 29. a3 {[%emt 0:00:16]} Rd2+ {[%emt 0:00:06]} 30. Re2 {[%emt 0:00:00]} Rxe2+ {[%emt 0:00:02]} 31. Kxe2 {[%emt 0:00:01] Weighted Error Value: White=0.03 (flawless) /Black=0.02 (flawless)} 1/2-1/2

[Event "Chinese League Div-A Rapid 2022"]
[Site "Fuling,Chongqing"]
[Date "2022.09.08"]
[Round "3.11"]
[White "Xu, Xiangyu"]
[Black "Li, Haoyu"]
[Result "*"]
[ECO "A41"]
[WhiteElo "2571"]
[BlackElo "2369"]
[Annotator "TA"]
[PlyCount "67"]
[EventDate "2022.09.07"]
[EventType "team-tourn"]
[EventCountry "CHN"]
[SourceTitle "playchess.com"]
[Source "ChessBase"]
[SourceQuality "1"]
[TimeControl "1500+10"]

{[%evp 11,67,22,38,28,24,13,33,33,47,41,56,51,47,18,122,118,104,114,105,92,95,47,84,78,85,63,75,72,66,53,177,188,190,32,213,207,215,207,203,182,222,141,143,93,142,103,143,144,136,124,254,238,234,226,329,305,225,230]} 1. d4 {[%emt 0:00:03]} d6 {[%emt 0:00:03]} 2. Nf3 {[%emt 0:00:10]} g6 {[%emt 0:00:07]} 3. g3 {[%emt 0:00:19]} Bg7 {[%emt 0:00:04]} 4. Bg2 {[%emt 0:00:02]} Nd7 {[%emt 0:00:27]} 5. O-O {[%emt 0:00:05]} e5 {[%emt 0:00:07]} 6. e4 {[%emt 0:00:03]} Ne7 {[%emt 0:00:36]} 7. a4 {[%emt 0:00:02] A41: 1 d4 d6: Tartakower System and Modern Defence.} O-O {[%emt 0:00:07]} 8. Re1 {[%emt 0:00:01]} h6 {[%emt 0:00:17]} 9. Nc3 {[%emt 0:00:04] [#] White is slightly better.} Kh7 $146 {[%emt 0:00:26]} ({Predecessor:} 9... a5 10. dxe5 dxe5 11. Nd5 c6 12. Ne3 Nc5 13. Qxd8 Rxd8 14. Nc4 f6 15. Be3 Ne6 {0-1 (53) Laith,K (2084)-Rydstrom,T (2316) Gothenburg 2018}) 10. a5 {[%emt 0:00:08]} a6 {[%emt 0:00:31]} 11. Be3 {[%emt 0:00:40]} Nc6 {[%emt 0:00:59]} 12. h3 {[%emt 0:00:51]} f5 {[%emt 0:02:11] [#]} (12... exd4 $11 {keeps the balance.} 13. Nxd4 Nde5) 13. exf5 $1 $16 {[%emt 0:00:10]} gxf5 {[%emt 0:00:03]} 14. dxe5 {[%emt 0:00:11]} dxe5 {[%emt 0:00:20]} 15. Nh4 {[%emt 0:00:11]} Nf6 {[%emt 0:03:45] Prevents Qh5.} 16. Bc5 {[%emt 0:00:02]} (16. Qe2 $16) 16... Qxd1 {[%emt 0:00:15]} 17. Raxd1 {[%emt 0:00:10] Black must now prevent Bxc6.} ({Of course not} 17. Rexd1 Rf7 $11) 17... Re8 {[%emt 0:00:03]} 18. Nd5 {[%emt 0:00:40]} Nxd5 {[%emt 0:00:12]} 19. Bxd5 {[%emt 0:00:04]} Bf6 {[%emt 0:07:53]} 20. Bf7 {[%emt 0:01:17] 0x0.001683ed4d75dp-1022s more active pieces.} Rg8 {[%emt 0:00:05]} 21. Bxg8+ $18 {[%emt 0:01:21]} Kxg8 {[%emt 0:00:02]} 22. Ng6 $2 {[%emt 0:02:10]} (22. Ng2 $18) 22... Be6 $2 {[%emt 0:01:55]} ({Black should try} 22... Kf7 $14 23. Nh4 Nxa5) 23. Nf4 {[%emt 0:00:04]} Kf7 {[%emt 0:00:06]} 24. Nxe6 {[%emt 0:00:31]} Kxe6 {[%emt 0:00:02]} 25. b4 {[%emt 0:00:06]} h5 {[%emt 0:00:22]} 26. Kg2 {[%emt 0:00:26]} Rg8 {[%emt 0:00:08]} 27. c4 {[%emt 0:00:24]} (27. Rb1 $142) 27... h4 {[%emt 0:00:53]} (27... e4 $142) 28. Rd3 {[%emt 0:00:26]} e4 {[%emt 0:00:32] [#]} 29. g4 $1 {[%emt 0:02:14] Kh1 is the strong threat.} Ne5 {[%emt 0:00:15]} 30. Rd5 {[%emt 0:00:05] aiming for Kh1.} Kf7 {[%emt 0:02:54]} (30... Nf3 $16 {keeps fighting.} 31. Re3 Be5) 31. Re2 {[%emt 0:04:28] And now Bd4 would win.} c6 {[%emt 0:01:01]} 32. Rd6 {[%emt 0:00:02] Threatens to win with Bd4.} Nxc4 {[%emt 0:00:09]} (32... Be7 $142) 33. Rd7+ {[%emt 0:00:02]} Ke6 {[%emt 0:00:02]} 34. Rxb7 {[%emt 0:00:04] Weighted Error Value: White=0.23 (precise) /Black=0.48} *

[Event "Chinese League Div-A Rapid 2022"]
[Site "Fuling,Chongqing"]
[Date "2022.09.08"]
[Round "3.12"]
[White "Li, Di"]
[Black "Li, Chao b"]
[Result "1/2-1/2"]
[ECO "D90"]
[WhiteElo "2575"]
[BlackElo "2679"]
[Annotator "TA"]
[PlyCount "36"]
[EventDate "2022.09.07"]
[EventType "team-tourn"]
[EventCountry "CHN"]
[SourceTitle "playchess.com"]
[Source "ChessBase"]
[SourceQuality "1"]
[TimeControl "1500+10"]

{[%evp 16,36,31,16,33,31,25,21,40,19,26,18,54,41,41,28,29,30,52,51,50,31,20]} 1. d4 {[%emt 0:00:01]} d5 {[%emt 0:00:05]} 2. c4 {[%emt 0:00:02]} c6 {[%emt 0:00:02]} 3. Nf3 {[%emt 0:00:01]} Nf6 {[%emt 0:00:02]} 4. Nc3 {[%emt 0:00:03]} g6 {[%emt 0:00:35]} 5. h3 {[%emt 0:00:06]} Bg7 {[%emt 0:00:33]} 6. cxd5 {[%emt 0:00:03]} cxd5 {[%emt 0:00:18]} 7. Bf4 {[%emt 0:00:02]} Nc6 {[%emt 0:00:36]} 8. e3 {[%emt 0:00:03]} O-O {[%emt 0:00:05]} 9. Be2 {[%emt 0:00:04]} b6 {[%emt 0:00:30] D90: Grünfeld: 4 Nf3 Bg7 sidelines.} (9... Qb6 {is interesting.} 10. a3 Ne4 11. Na4 Qd8) 10. O-O {[%emt 0:00:05]} Bb7 {[%emt 0:00:01]} 11. Rc1 {[%emt 0:00:09]} Rc8 {[%emt 0:00:38] The position is equal.} 12. Ne5 {[%emt 0:00:51]} Nxe5 {[%emt 0:01:14]} 13. Bxe5 {[%emt 0:00:06] [#]} Nd7 $146 {[%emt 0:00:30][%cal Bf6d7,Bd7b8,Bb8c6][%mdl 32]} ({Predecessor:} 13... Ne4 14. Bxg7 Kxg7 15. Qa4 Nxc3 16. bxc3 Qc7 17. Qa3 e6 18. c4 dxc4 19. Bxc4 Qb8 20. Bb3 Rxc1 21. Rxc1 Rc8 22. Rxc8 Bxc8 23. Qe7 Qb7 24. Qd6 Qe4 {½-½ (24) Najdorf,M-Golombek,H Moscow 1956}) 14. Bxg7 {[%emt 0:00:25]} Kxg7 {[%emt 0:00:01]} 15. Qb3 {[%emt 0:00:10]} Nb8 {[%emt 0:00:49]} 16. Rc2 {[%emt 0:00:14]} e6 {[%emt 0:02:23]} 17. Qa3 {[%emt 0:01:46]} Nc6 {[%emt 0:02:02]} 18. Nb5 {[%emt 0:06:58] Black must now prevent Rfc1.} a6 {[%emt 0:02:59] Weighted Error Value: White=0.08 (flawless) /Black=0.10 (very precise)} 1/2-1/2